bitfinex/quotes_ETHUSD_20240711
["timestamp","ask_amount","ask_price","bid_price","bid_amount"]
[1720705926394,0.65218348,3182.6,3182.0,3.14261]
[1720705926555,0.65218348,3182.6,3182.2,3.14245]
[1720705927078,0.65218348,3182.6,3182.3,0.03336117]
[1720705927079,0.12639779,3182.6,3182.3,0.03336117]
[1720705927279,0.65218348,3182.8,3182.4,3.14227]
[1720705927654,0.65218348,3182.8,3182.2,3.14245]
[1720705927655,0.7785035,3182.8,3182.5,0.03336117]
[1720705927890,0.12632002,3182.7,3182.5,0.03336117]
[1720705928188,0.65218348,3182.8,3182.4,3.14227]
[1720705928402,0.65218348,3182.8,3182.0,0.314261]
[1720705928403,0.94155012,3182.8,3182.0,3.14266]
[1720705928609,0.94155012,3182.8,3182.1,3.14255]
[1720705928610,0.12632077,3182.7,3182.1,3.14255]
[1720705928894,0.65218348,3182.8,3182.1,3.17591117]
[1720705929199,0.77848014,3182.7,3182.1,3.17591117]
[1720705929397,0.65218348,3182.8,3182.1,0.03336117]
[1720705929572,0.6518727,3182.4,3182.1,0.03336117]
[1720705929773,0.81484088,3182.4,3181.8,3.28767736]
[1720705929960,0.6518727,3182.2,3181.8,3.28767736]
[1720705930167,0.77823183,3182.1,3181.8,3.28767736]
[1720705930383,0.6518727,3182.1,3181.8,3.28767736]
[1720705930697,0.78155995,3182.0,3181.5,0.6]
[1720705930862,0.78156531,3181.9,3181.5,0.6]
[1720705931061,0.1759369,3182.0,3181.5,0.6]
[1720705931062,0.8278096,3182.0,3181.5,0.6]
[1720705931264,0.6518727,3181.9,3181.5,0.6]
[1720705931504,0.6518727,3181.6,3181.5,0.6]
[1720705931658,1.10751247,3181.6,3181.5,0.6]
[1720705931863,0.8459009,3181.6,3181.5,0.6]
[1720705932303,2.14964631,3181.6,3181.5,0.6]
[1720705932486,2.1498682,3181.6,3181.5,0.6]
[1720705932692,2.0199429,3181.6,3181.5,0.6]
[1720705932878,2.15091394,3181.6,3181.5,0.6]
[1720705933059,2.15104473,3181.6,3181.5,0.6]
[1720705933388,3.56567966,3181.6,3181.5,0.6]
[1720705933568,1.93471112,3181.6,3181.5,0.6]
[1720705934130,9.85180093,3181.6,3181.5,0.6]
[1720705934316,5.07778112,3181.6,3181.5,0.6]
[1720705934662,5.860321,3181.6,3181.5,0.6]
[1720705934976,1.93471112,3181.6,3181.5,0.6]
[1720705935170,5.07778112,3181.6,3181.5,0.6]
[1720705935657,5.86008185,3181.6,3181.5,0.6]
[1720705936061,5.077826,3181.6,3181.5,0.6]
[1720705937165,5.077826,3181.6,3181.5,0.50361723]
[1720705937365,1.934756,3181.6,3181.5,0.50205986]
[1720705937758,5.077826,3181.6,3181.5,0.50205986]
[1720705938161,3.85926749,3181.6,3181.5,0.50205986]
[1720705938362,5.85258586,3181.6,3181.5,0.50205986]
[1720705938896,5.07364077,3181.6,3181.5,0.50205986]
[1720705939307,3.98497988,3181.6,3181.5,0.50205986]
[1720705939466,5.07357712,3181.6,3181.5,0.50205986]
[1720705940095,1.90530619,3181.6,3181.5,0.50205986]
[1720705940288,0.77804141,3181.6,3181.5,3.64522986]
[1720705940492,1.3045221,3181.9,3181.5,3.64522986]
[1720705940493,0.65232902,3181.7,3181.6,3.14307]
[1720705940692,0.12558161,3181.7,3181.6,3.14307]
[1720705940999,0.9784261,3181.7,3181.6,0.03362981]
[1720705941212,0.12558161,3181.7,3181.6,0.03362981]
[1720705941414,1.54537508,3181.7,3181.6,0.03362981]
[1720705941582,2.14293091,3181.7,3181.6,0.03362981]
[1720705941783,0.83791028,3181.7,3181.6,0.03362981]
[1720705942513,0.71232867,3181.7,3181.6,0.03362981]
[1720705942811,1.63113486,3181.7,3181.6,0.03362981]
[1720705942980,4.23150611,3181.7,3181.6,0.03362981]
[1720705943165,4.82867266,3181.7,3181.5,0.50205986]
[1720705943371,2.46476572,3181.6,3181.5,0.50205986]
[1720705943571,1.68570266,3181.6,3181.5,0.53568967]
[1720705943819,2.36430788,3181.6,3181.5,0.53568967]
[1720705944137,8.65044788,3181.6,3181.5,0.53568967]
[1720705944269,9.42996993,3181.6,3181.5,0.30160918]
[1720705944468,9.42996993,3181.6,3181.5,0.26797937]
[1720705944469,11.7135794,3181.6,3181.5,0.26797937]
[1720705944684,11.7135794,3181.6,3181.5,0.0920387]
[1720705944872,5.4274394,3181.6,3180.2,2.4976]
[1720705945095,0.65260777,3180.4,3180.2,2.4976]
[1720705945300,0.65241799,3180.4,3180.3,0.03136272]
[1720705945786,0.65241799,3180.4,3180.3,0.03137025]
[1720705945787,0.75932595,3180.4,3180.3,0.03137025]
[1720705945987,0.65241799,3180.5,3179.9,3.14473]
[1720705946294,0.65240648,3180.5,3180.0,0.03137025]
[1720705946493,0.65240648,3180.4,3180.0,0.03137025]
[1720705946712,0.65240648,3180.4,3179.7,15.40767736]
[1720705946713,0.65240648,3180.1,3179.7,15.40767736]
[1720705946918,0.65240648,3179.9,3179.3,2.2876]
[1720705947211,0.65240648,3179.6,3178.8,2.2876]
[1720705947407,0.65240648,3179.4,3178.8,2.2876]
[1720705947615,0.10702973,3179.3,3178.8,5.43335]
[1720705947906,0.65240648,3179.4,3178.7,0.314592]
[1720705948212,0.65240648,3179.4,3178.3,5.50064]
[1720705948213,0.65240648,3179.1,3178.3,5.50064]
[1720705948705,3.14525,3179.4,3178.4,3.14623]
[1720705949010,3.14525,3179.4,3178.3,2.3544]
[1720705949011,0.65106271,3179.1,3178.3,2.3544]
[1720705949529,0.65106271,3179.1,3178.3,5.50072]
[1720705949826,0.97659407,3179.3,3178.3,5.50072]
[1720705949827,0.65106271,3179.3,3178.6,3.146]
[1720705949972,0.65106271,3179.3,3178.3,2.3544]
[1720705950169,0.11188959,3179.2,3178.3,2.3544]
[1720705950414,3.30812568,3179.3,3178.3,5.50072]
[1720705950708,0.16276568,3179.3,3178.3,5.50072]
[1720705951582,3.79619271,3179.6,3178.5,3.14613]
[1720705951801,0.11167078,3179.5,3178.5,3.14613]
[1720705951993,0.65106271,3179.6,3178.6,3.14597]
[1720705952309,3.14505,3179.6,3178.6,3.14597]
[1720705952470,0.64968905,3179.8,3178.7,3.14593]
[1720705952675,0.37944491,3179.7,3178.8,3.1458]
[1720705952875,3.79436905,3180.0,3178.8,3.1458]
[1720705953120,3.79438905,3180.0,3178.7,3.1459]
[1720705953404,3.14476,3179.9,3178.8,3.14577]
[1720705953610,3.14476,3179.9,3178.9,3.14571]
[1720705953973,3.14476,3179.9,3178.7,6.29176]
[1720705954172,0.64968905,3180.0,3178.6,3.14596]
[1720705954173,3.14502,3179.7,3178.6,3.14596]
[1720705954385,3.14502,3179.7,3178.6,6.29191]
[1720705954584,3.14469,3180.0,3178.8,3.14576]
[1720705954788,3.14494,3179.8,3178.6,3.14599]
[1720705955014,0.64968905,3180.1,3178.5,3.28767736]
[1720705955015,3.14517,3179.5,3178.5,3.28767736]
[1720705955221,0.64968905,3180.0,3178.5,3.28767736]
[1720705955222,3.459757,3179.4,3178.5,3.28767736]
[1720705955426,3.14558,3179.1,3178.2,7.69767736]
[1720705955825,3.14565,3179.0,3178.2,7.69767736]
[1720705956423,3.14552,3179.2,3178.2,7.69767736]
[1720705956620,0.314517,3179.4,3178.2,7.69767736]
[1720705956621,0.314517,3179.4,3178.3,3.14632]
[1720705956778,0.314517,3179.4,3178.4,1.08439974]
[1720705956976,3.459787,3179.4,3178.3,3.14632]
[1720705957175,3.459787,3179.4,3178.3,3.14625]
[1720705957625,3.1455,3179.2,3178.2,7.69767736]
[1720705957780,3.14566,3179.0,3178.2,7.69767736]
[1720705958831,3.14566,3179.0,3178.2,4.55767736]
[1720705959112,0.314517,3179.4,3178.4,3.1462]
[1720705959412,3.1452,3179.5,3178.4,6.29234]
[1720705959717,3.14525,3179.4,3178.4,3.14614]
[1720705960019,3.14525,3179.4,3178.4,6.29229]
[1720705960173,3.774295,3179.4,3178.4,7.45432851]
[1720705960510,3.774295,3179.4,3178.4,4.30817851]
[1720705960705,0.629045,3179.4,3179.2,0.2]
[1720705960884,3.14534,3179.3,3179.2,0.1714493]
[1720705961218,2.556,3179.3,3177.8,2.4362]
[1720705961433,3.14652,3178.2,3177.6,3.28767736]
[1720705961718,3.14656,3178.1,3177.1,3.28767736]
[1720705961902,4.031468,3178.1,3177.1,5.1432081]
[1720705962312,0.884908,3178.1,3177.1,8.2907181]
[1720705962515,3.14641,3178.3,3177.1,8.2907181]
[1720705962896,3.14654,3178.1,3177.1,3.28767736]
[1720705963100,3.14674,3177.9,3177.1,3.28767736]
[1720705963725,3.14684,3177.8,3177.1,3.28767736]
[1720705964724,3.14693,3177.7,3177.1,3.28767736]
[1720705964925,3.14705,3177.6,3177.1,3.28767736]
[1720705965123,3.14724,3177.4,3177.1,3.28767736]
[1720705965322,3.14724,3177.4,3176.4,3.28767736]
[1720705966343,3.185398,3177.5,3176.4,3.28767736]
[1720705966505,3.14764,3177.0,3176.4,3.28767736]
[1720705967222,3.14738,3177.3,3176.4,3.28767736]
[1720705967416,0.629398,3177.5,3176.6,3.14799]
[1720705967626,3.14686,3177.8,3176.6,3.14799]
[1720705967908,3.14647,3178.2,3177.0,3.14762]
[1720705968114,3.14656,3178.1,3177.1,3.14752]
[1720705969227,3.14665,3178.0,3176.9,3.14765]
[1720705969425,3.14675,3177.9,3176.7,3.28767736]
[1720705969650,0.62934,3177.8,3176.9,3.14769]
[1720705969849,2.556,3178.3,3177.1,3.14746]
[1720705970026,3.14635,3178.3,3177.1,3.14743]
[1720705970226,3.14654,3178.1,3177.1,3.14743]
[1720705970629,3.14656,3178.1,3177.1,3.14743]
[1720705970836,3.14656,3178.1,3177.0,3.14761]
[1720705971042,3.775861,3178.1,3177.0,3.777135]
[1720705971348,3.14663,3178.0,3177.0,3.777135]
[1720705971810,0.629301,3178.1,3177.1,6.29493]
[1720705972015,3.14645,3178.2,3177.1,6.29493]
[1720705972414,3.14607,3178.6,3177.3,3.14726]
[1720705972643,0.3155,3179.0,3177.5,3.14704]
[1720705972644,3.14589,3178.8,3177.5,3.14704]
[1720705972847,0.3155,3179.0,3177.5,3.14704]
[1720705972848,3.14568,3179.0,3177.7,3.14691]
[1720705973044,2.46717684,3179.9,3177.4,2.4036]
[1720705973045,0.814278,3178.9,3177.8,0.37762471]
[1720705973251,2.556,3179.5,3177.7,3.14688]
[1720705973554,5.58618,3179.6,3177.5,3.14709]
[1720705973555,3.14604,3178.6,3177.5,3.14709]
[1720705973756,3.14629,3178.4,3177.4,2.4036]
[1720705973970,3.775538,3178.4,3177.4,3.30745374]
[1720705974120,3.775538,3178.4,3177.4,9.60173374]
[1720705974319,3.1464,3178.3,3177.3,0.2]
[1720705974617,3.14646,3178.2,3177.3,0.2]
[1720705974965,3.14646,3178.2,3177.3,3.34732]
[1720705975321,3.14604,3178.6,3177.5,3.14711]
[1720705975547,3.14585,3178.8,3177.9,3.14666]
[1720705975869,3.14611,3178.6,3178.0,0.02899927]
[1720705976041,3.14611,3178.6,3177.8,2.3678]
[1720705976246,3.14611,3178.6,3177.9,0.02899927]
[1720705976442,0.314585,3178.8,3177.9,3.17572927]
[1720705976763,3.14592,3178.8,3177.9,0.02899927]
[1720705976915,3.14592,3178.8,3177.9,3.17571927]
[1720705977129,3.14559,3179.1,3177.9,3.17571927]
[1720705977333,3.14574,3178.9,3177.9,3.17571927]
[1720705977545,2.71556853,3179.5,3177.9,0.09193093]
[1720705977746,1.36112135,3179.4,3178.4,3.14623]
[1720705978041,1.08955455,3179.3,3178.3,3.14626]
[1720705978255,3.14496,3179.7,3178.6,5.43443]
[1720705978584,3.14496,3179.7,3178.7,0.0287426]
[1720705978585,4.23467501,3179.6,3178.7,0.0287426]
[1720705978769,3.14514,3179.6,3178.7,0.0287426]
[1720705978947,3.459654,3179.6,3178.7,0.0287426]
[1720705979153,3.1447,3180.0,3178.9,3.14568]
[1720705979334,1.08924566,3179.9,3178.9,3.14568]
[1720705979530,3.14489,3179.8,3178.8,3.14575]
[1720705980083,3.1447,3180.0,3178.9,3.14565]
[1720705980237,4.8827,3180.3,3178.9,0.0287426]
[1720705980435,1.57742065,3180.2,3178.9,0.0287426]
[1720705980741,3.14492,3179.8,3178.7,3.14593]
[1720705980941,3.14492,3179.8,3179.0,0.02856149]
[1720705981165,3.1447,3180.0,3178.6,2.2884]
[1720705981352,6.77731,3180.2,3179.1,0.02856149]
[1720705981552,2.25521048,3180.1,3179.1,0.02856149]
[1720705981782,1.166001,3180.1,3179.1,3.17403149]
[1720705981981,0.16310162,3180.5,3179.0,3.14558]
[1720705982153,3.14447,3180.2,3179.2,0.02848857]
[1720705982341,3.14468,3180.0,3178.7,3.28767736]
[1720705982651,3.14485,3179.8,3178.7,3.28767736]
[1720705982856,3.14485,3179.8,3178.8,0.02849109]
[1720705983040,0.314485,3179.7,3178.8,0.02849109]
[1720705983539,0.314485,3179.7,3178.9,3.14572]
[1720705983738,3.14482,3179.9,3178.9,3.17421109]
[1720705984172,3.14456,3180.1,3178.9,3.17414109]
[1720705984375,3.30731162,3180.5,3179.3,3.14528]
[1720705984695,1.08909844,3180.4,3179.5,3.1451]
[1720705984983,0.33073116,3180.4,3179.5,2.4802]
[1720705985191,0.64834076,3181.3,3180.0,2.4802]
[1720705985356,3.14337,3181.3,3180.2,3.14439]
[1720705985683,0.314337,3181.2,3180.0,2.4802]
[1720705985886,3.79147076,3181.6,3180.1,0.02844834]
[1720705985887,3.14379,3180.9,3180.1,0.02844834]
[1720705986087,3.14379,3180.9,3180.0,2.4802]
[1720705986286,3.14402,3180.7,3180.1,0.02844834]
[1720705986655,0.64834076,3181.1,3180.1,0.02844834]
[1720705986886,3.14432,3180.4,3179.3,13.22753736]
[1720705987044,0.64834076,3180.8,3179.5,3.14511]
[1720705987045,0.314432,3180.3,3179.5,3.14511]
[1720705987251,3.79224076,3180.8,3179.7,3.14492]
[1720705987252,3.14407,3180.6,3179.7,3.14492]
[1720705987551,3.14407,3180.6,3179.8,0.02825481]
[1720705987806,3.14425,3180.5,3179.8,0.02825481]
[1720705988092,0.64834076,3180.8,3179.5,3.14513]
[1720705988246,0.64834076,3180.8,3179.3,6.7946]
[1720705988247,0.64834076,3181.0,3179.6,0.41150914]
[1720705988499,3.1435,3181.2,3179.7,2.4753]
[1720705988500,0.64834076,3181.2,3179.7,2.4753]
[1720705988653,3.14357,3181.1,3180.2,3.14438]
[1720705988884,3.14357,3181.1,3179.8,0.02781222]
[1720705988885,0.64834076,3181.3,3180.3,0.02777202]
[1720705989088,3.79164076,3181.4,3180.4,3.14424]
[1720705989386,0.64834076,3181.4,3180.5,0.02777202]
[1720705989589,7.25876114,3181.6,3180.5,0.02777202]
[1720705989590,0.64834076,3181.5,3180.5,3.17188202]
[1720705989890,0.64834076,3181.6,3180.7,3.14395]
[1720705990093,3.14294,3181.8,3180.8,3.14386]
[1720705990249,3.14294,3181.8,3180.8,3.17152398]
[1720705990454,3.14294,3181.8,3180.8,0.02766398]
[1720705990772,3.14313,3181.6,3180.8,0.02766398]
[1720705990980,3.79146076,3181.6,3180.8,0.02766398]
[1720705991286,3.14323,3181.5,3180.9,0.0275409]
[1720705991458,3.14327,3181.4,3180.6,2.4823]
[1720705991650,6.28663,3181.4,3180.7,0.0275409]
[1720705991988,3.83687708,3181.3,3180.7,0.0275409]
[1720705992500,3.79145076,3181.6,3180.7,0.0275409]
[1720705992664,3.14311,3181.6,3180.7,0.0275409]
[1720705992859,3.14335,3181.4,3180.7,0.0275409]
[1720705993380,0.37912808,3181.7,3180.7,0.0275409]
[1720705993579,3.14335,3181.4,3180.7,0.0275409]
[1720705993889,3.1431,3181.6,3180.7,0.0275409]
[1720705994090,3.14334,3181.4,3180.7,0.0275409]
[1720705994397,3.14339,3181.3,3180.7,0.0275409]
[1720705995090,3.79386615,3181.8,3180.7,0.0275409]
[1720705995268,3.14307,3181.6,3180.7,3.54945499]
[1720705995587,4.11897423,3182.2,3181.0,3.14359]
[1720705995588,3.14272,3182.0,3181.0,3.14359]
[1720705995750,6.28548,3182.0,3181.0,3.14359]
[1720705995952,3.14272,3182.0,3181.1,0.02758862]
[1720705996160,3.14252,3182.2,3181.1,0.02758862]
[1720705996474,0.37934962,3182.1,3181.1,0.02758862]
[1720705996669,3.14275,3182.0,3181.1,0.02758862]
[1720705997067,0.37934962,3182.1,3181.1,3.17113862]
[1720705997389,6.34793813,3182.5,3181.4,3.14326]
[1720705997693,3.14227,3182.5,3181.5,3.1431]
[1720705997901,3.14232,3182.4,3181.5,3.17065095]
[1720705998275,3.14249,3182.2,3181.5,0.02755095]
[1720705998488,3.14279,3181.9,3181.2,2.3727]
[1720705998670,3.14317,3181.5,3180.8,5.56977736]
[1720705998885,3.14318,3181.5,3180.8,5.56977736]
[1720705999280,0.314279,3181.8,3180.8,5.56977736]
[1720705999465,0.314279,3181.8,3180.8,8.71361736]
[1720705999902,3.14262,3182.1,3181.0,3.14357]
[1720705999903,3.14263,3182.1,3181.0,3.14357]
[1720706000411,3.14243,3182.3,3181.3,3.14336]
[1720706000960,3.14248,3182.2,3181.3,3.14336]
[1720706001196,3.14261,3182.1,3181.1,3.14355]
[1720706001503,3.14261,3182.1,3180.8,5.56977736]
[1720706001504,3.14281,3181.9,3180.8,5.56977736]
[1720706001670,0.314281,3181.8,3180.8,8.71358736]
[1720706001873,3.14316,3181.6,3180.8,5.56977736]
[1720706002080,3.14319,3181.5,3180.8,5.56977736]
[1720706002265,3.14358,3181.1,3180.2,3.28767736]
[1720706002888,5.69901,3181.7,3180.2,3.28767736]
[1720706002889,3.14392,3180.8,3180.2,3.28767736]
[1720706003067,0.314392,3180.7,3180.2,3.28767736]
[1720706003593,3.14369,3181.0,3180.2,3.28767736]
[1720706004104,3.14406,3180.6,3180.2,3.28767736]
[1720706004314,3.14406,3180.6,3179.6,2.4898]
[1720706004527,3.14394,3180.8,3179.6,2.4898]
[1720706004666,2.556,3180.9,3179.3,3.28767736]
[1720706004667,3.14458,3180.1,3179.3,3.28767736]
[1720706004987,3.14491,3179.8,3179.1,2.4771]
[1720706005191,3.14505,3179.6,3178.9,3.28767736]
[1720706005393,3.14518,3179.5,3178.9,3.28767736]
[1720706005577,3.14507,3179.6,3178.9,3.28767736]
[1720706005776,3.14521,3179.5,3178.9,3.28767736]
[1720706006367,3.145,3179.7,3178.9,3.28767736]
[1720706006579,0.628988,3179.7,3178.9,3.28767736]
[1720706006797,6.603838,3180.0,3178.9,3.28767736]
[1720706006993,3.14478,3179.9,3178.9,3.28767736]
[1720706007211,3.14449,3180.2,3178.9,3.28767736]
[1720706007371,2.556,3180.7,3178.9,3.28767736]
[1720706007571,3.14452,3180.2,3179.1,3.14546]
[1720706007801,0.314452,3180.1,3179.1,3.774577]
[1720706008009,0.314452,3180.1,3179.2,3.14543]
[1720706008010,3.459012,3180.1,3179.2,3.14543]
[1720706008218,3.14456,3180.1,3179.1,3.774577]
[1720706008382,3.14481,3179.9,3178.7,1.27]
[1720706008581,3.14481,3179.9,3178.9,3.14566]
[1720706008785,3.14481,3179.9,3179.0,3.14563]
[1720706009598,3.14421,3180.5,3179.2,3.14543]
[1720706009599,3.1444,3180.3,3179.2,3.14543]
[1720706009793,3.14456,3180.1,3179.2,3.14543]
[1720706010103,3.14456,3180.1,3178.7,1.27]
[1720706010104,3.14476,3179.9,3178.8,3.1458]
[1720706010267,3.14504,3179.7,3178.7,1.27]
[1720706010471,3.14525,3179.4,3178.7,1.27]
[1720706010672,3.14536,3179.3,3178.7,1.27]
[1720706010987,3.14582,3178.9,3178.1,8.84217736]
[1720706011173,3.14557,3179.1,3178.1,7.65071774]
[1720706011491,3.14557,3179.1,3178.2,3.14643]
[1720706011694,3.14557,3179.1,3178.1,5.5545]
[1720706012099,3.14557,3179.1,3178.1,8.70097]
[1720706013203,3.14557,3179.1,3178.2,3.14641]
[1720706013391,3.14519,3179.5,3178.3,3.14632]
[1720706013586,1.52352024,3179.8,3178.3,4.33734131]
[1720706013587,3.14547,3179.2,3178.3,4.33734131]
[1720706013797,3.14542,3179.3,3178.3,4.33734131]
[1720706014187,3.14542,3179.3,3178.3,1.19102131]
[1720706014512,3.1455,3179.2,3178.1,8.70095]
[1720706014696,3.14542,3179.3,3178.2,3.14637]
[1720706014906,6.29085,3179.3,3178.3,3.14632]
[1720706015227,3.14542,3179.3,3178.3,3.14632]
[1720706015385,3.14544,3179.2,3178.3,3.14632]
[1720706015584,3.14544,3179.2,3178.3,4.33733922]
[1720706015783,3.14544,3179.2,3178.3,3.14632]
[1720706015978,3.14542,3179.3,3178.3,3.14632]
[1720706016909,3.14495,3179.7,3178.6,3.14596]
[1720706017921,3.14495,3179.7,3178.7,3.14591]
[1720706018238,3.14495,3179.7,3178.5,3.20902484]
[1720706018239,3.773526,3180.1,3179.1,3.14547]
[1720706018569,3.14495,3179.7,3178.6,3.14601]
[1720706019202,0.65050164,3179.8,3178.5,3.7389]
[1720706019401,3.14547,3179.2,3178.5,3.7389]
[1720706019582,3.14532,3179.4,3178.5,3.7389]
[1720706019798,3.14532,3179.4,3178.8,0.2]
[1720706019998,3.5139712,3179.3,3178.8,0.2]
[1720706020296,0.3685512,3179.3,3178.8,0.2]
[1720706020599,6.29148,3178.9,3178.8,0.16640591]
[1720706020827,7.40280043,3178.9,3178.8,0.0922938]
[1720706020992,6.42704797,3178.9,3178.8,0.0922938]
[1720706021339,8.5877388,3178.9,3178.8,0.0922938]
[1720706021624,8.58329236,3178.9,3178.8,0.0922938]
[1720706021829,3.14637,3178.3,3177.5,5.56407736]
[1720706022049,3.14643,3178.2,3177.1,5.70667736]
[1720706022359,3.14643,3178.2,3177.2,3.1474]
[1720706022551,3.14643,3178.2,3177.2,5.24480774]
[1720706023028,3.14655,3178.1,3177.1,5.70667736]
[1720706023324,3.14664,3178.0,3177.1,5.70667736]
[1720706024432,3.14679,3177.9,3177.1,2.419]
[1720706024887,0.65092035,3178.3,3176.9,4.41771]
[1720706024888,3.14701,3177.7,3176.9,1.27]
[1720706025088,3.14713,3177.5,3176.9,1.27]
[1720706025324,3.14725,3177.4,3176.9,1.27]
[1720706025534,3.461811,3177.6,3176.9,1.27]
[1720706025731,3.14694,3177.7,3176.9,1.27]
[1720706025890,6.29396,3177.7,3176.9,1.27]
[1720706026119,3.14694,3177.7,3176.9,1.27]
[1720706026390,3.14703,3177.6,3176.9,1.27]
[1720706026588,3.14694,3177.7,3176.9,1.27]
[1720706026834,3.14676,3177.9,3176.9,1.27]
[1720706026835,6.29357,3177.9,3176.9,1.27]
[1720706026987,3.776117,3177.9,3176.9,1.27]
[1720706027193,3.14676,3177.9,3176.9,4.41771]
[1720706027703,3.14658,3178.1,3177.0,3.14755]
[1720706027918,3.52242035,3178.4,3177.1,3.14746]
[1720706027919,3.14639,3178.3,3177.1,3.14746]
[1720706028234,0.65092035,3178.6,3177.4,3.14715]
[1720706028447,0.16273009,3178.6,3177.6,3.14696]
[1720706028727,3.14612,3178.6,3177.6,3.14696]
[1720706029052,0.6498307,3178.9,3177.3,2.3374]
[1720706029192,3.14639,3178.3,3177.3,2.3374]
[1720706029529,2.556,3178.8,3177.3,2.3374]
[1720706029731,3.14579,3178.9,3177.7,3.14691]
[1720706029933,0.37956207,3178.8,3177.9,3.14664]
[1720706030135,0.37956207,3178.8,3177.4,0.062939]
[1720706030136,3.14582,3178.9,3177.8,3.14673]
[1720706030331,2.556,3179.2,3177.6,6.29393]
[1720706030332,3.14607,3178.6,3177.6,6.29393]
[1720706030492,3.14607,3178.6,3177.7,3.14692]
[1720706030893,3.14607,3178.6,3177.6,3.14694]
[1720706031602,3.1458,3178.9,3177.9,3.1467]
[1720706031822,3.774939,3178.9,3177.9,3.776053]
[1720706032326,3.14584,3178.8,3177.7,3.14683]
[1720706032693,3.14584,3178.8,3177.8,3.14682]
[1720706033101,3.14608,3178.6,3177.5,3.14705]
[1720706033310,3.14614,3178.5,3177.5,3.14705]
[1720706033692,3.14614,3178.5,3177.6,3.14702]
[1720706033931,3.14601,3178.7,3177.7,3.14692]
[1720706034103,3.14609,3178.6,3177.7,3.14692]
[1720706034304,3.14613,3178.5,3177.5,3.14705]
[1720706034510,3.14613,3178.5,3177.6,0.314705]
[1720706034819,3.14613,3178.5,3177.6,3.461725]
[1720706035039,3.14631,3178.4,3177.3,5.48466]
[1720706035329,3.14631,3178.4,3177.5,3.14712]
[1720706035917,6.29262,3178.4,3177.5,3.14712]
[1720706036317,3.14634,3178.3,3177.3,5.48463]
[1720706037437,3.14634,3178.3,3177.3,8.63188]
[1720706037754,4.23624412,3178.2,3177.3,2.3374]
[1720706037912,4.23635636,3178.1,3177.3,2.3374]
[1720706038113,3.14648,3178.2,3177.3,5.48471]
[1720706038715,1.08977676,3178.1,3177.3,5.48471]
[1720706039161,3.14653,3178.1,3177.3,5.48471]
[1720706039359,3.775817,3178.1,3177.3,5.48471]
[1720706039568,3.14665,3178.0,3177.0,3.14757]
[1720706039768,3.14665,3178.0,3177.0,3.14754]
[1720706039952,3.14665,3178.0,3177.1,3.14751]
[1720706040335,0.629287,3178.1,3177.2,3.14742]
[1720706040546,4.23643327,3178.0,3177.1,3.14751]
[1720706040858,3.94787203,3178.0,3177.1,3.14751]
[1720706041062,3.94787203,3178.0,3176.9,4.41769]
[1720706041272,0.6518386,3178.5,3176.8,2.4427]
[1720706041273,1.0898258,3177.9,3176.8,2.4427]
[1720706041430,3.1471,3177.6,3176.4,6.43579736]
[1720706041629,3.1471,3177.6,3176.5,3.14802]
[1720706041630,3.14723,3177.4,3176.5,3.14802]
[1720706041936,3.14744,3177.2,3176.3,2.3768]
[1720706042235,3.14744,3177.2,3176.1,3.28767736]
[1720706042236,0.42375009,3177.1,3176.1,3.28767736]
[1720706042677,6.29538,3177.0,3176.1,6.43613736]
[1720706042969,3.14767,3177.0,3176.1,6.43613736]
[1720706043523,3.14723,3177.4,3176.3,3.14825]
[1720706043737,3.5337579,3177.9,3176.3,3.14825]
[1720706043738,3.14708,3177.6,3176.6,3.14801]
[1720706043990,0.6518386,3177.8,3177.0,3.14761]
[1720706044275,3.14648,3178.2,3177.1,3.14746]
[1720706044422,3.79848963,3178.3,3177.1,0.06294249]
[1720706044423,0.65213963,3178.3,3177.1,0.06294249]
[1720706044630,3.14624,3178.4,3177.4,3.14719]
[1720706044852,1.08970114,3178.3,3177.4,3.14719]
[1720706045081,3.1462,3178.5,3177.6,3.14697]
[1720706045280,4.23592032,3178.4,3177.5,5.6371]
[1720706045476,1.08967032,3178.3,3177.5,5.6371]
[1720706045891,0.65213963,3178.7,3177.9,3.14665]
[1720706046048,1.0895844,3178.6,3177.9,3.14665]
[1720706046248,0.65213963,3178.7,3177.9,3.461315]
[1720706046452,0.65213963,3178.8,3177.9,3.461315]
[1720706046705,1.08957306,3178.7,3177.9,3.461305]
[1720706046895,3.79789963,3178.9,3177.9,3.461305]
[1720706047099,1.22699837,3178.8,3178.1,3.1465]
[1720706047264,0.65213963,3178.9,3178.1,3.81357331]
[1720706047472,0.65213963,3179.0,3178.1,3.81357331]
[1720706047789,1.74164443,3178.9,3178.1,3.1465]
[1720706048010,0.13752611,3178.8,3177.9,0.314665]
[1720706048158,0.65213963,3178.7,3178.0,3.14662]
[1720706048353,0.65213963,3178.7,3177.9,0.314665]
[1720706048667,3.79830963,3178.5,3177.5,2.49]
[1720706048993,0.78984176,3178.4,3177.6,3.14702]
[1720706049153,0.78984176,3178.4,3177.5,2.49]
[1720706049355,0.78984176,3178.4,3176.8,3.28767736]
[1720706049356,0.65213963,3178.0,3176.8,3.28767736]
[1720706049579,0.65213963,3177.7,3176.9,3.14765]
[1720706049785,0.65213963,3177.6,3177.0,3.14755]
[1720706050001,0.65213963,3177.7,3177.0,3.14755]
[1720706050168,0.65213963,3177.7,3176.8,3.14775]
[1720706050372,0.65213963,3177.5,3176.9,3.14769]
[1720706050586,0.97820945,3177.7,3176.9,3.14769]
[1720706050788,2.06809868,3177.6,3176.9,3.777234]
[1720706050956,0.12516461,3177.5,3176.9,3.777234]
[1720706051157,0.97820945,3177.7,3176.9,3.777234]
[1720706051471,0.12514477,3177.7,3177.2,3.14738]
[1720706051798,0.97820945,3177.9,3177.3,3.14725]
[1720706052005,0.12506815,3177.9,3177.3,3.776713]
[1720706052203,0.12506815,3177.8,3177.3,0.629463]
[1720706052371,0.97820945,3177.9,3177.3,0.629463]
[1720706052586,0.97820945,3177.9,3177.2,3.14736]
[1720706052788,2.19304115,3177.8,3177.0,3.14756]
[1720706053011,0.12503919,3177.7,3177.2,3.14736]